[Event "Live Chess"]
[Site "Chess.com"]
[Date "2023.09.16"]
[Round "-"]
[White "Giulliajapa007"]
[Black "zezemito921"]
[Result "0-1"]
[WhiteElo "984"]
[BlackElo "917"]
[TimeControl "900+5"]
[EndTime "7:03:57 PDT"]
[Termination "zezemito921 venceu por xeque-mate"]

1. e4 {[%clk 0:15:00.3]} 1... e5 {[%clk 0:15:02.3]} 2. Nf3 {[%clk 0:15:04.2]}
2... Nc6 {[%clk 0:15:04.1]} 3. Bb5 {[%clk 0:15:07.2]} 3... d6 {[%clk 0:15:05.5]}
4. Bxc6+ {[%clk 0:15:09.8]} 4... bxc6 {[%clk 0:15:07.3]} 5. h3 {[%clk
0:15:10.6]} 5... Nf6 {[%clk 0:15:09.5]} 6. Nc3 {[%clk 0:15:13.6]} 6... d5 {[%clk
0:15:08.3]} 7. Nxe5 {[%clk 0:15:03]} 7... dxe4 {[%clk 0:15:07.4]} 8. Nxc6 {[%clk
0:14:55]} 8... Qd7 {[%clk 0:14:50.1]} 9. Ne5 {[%clk 0:14:56.4]} 9... Qe6 {[%clk
0:14:41.9]} 10. d4 {[%clk 0:14:41]} 10... Bd6 {[%clk 0:14:42.7]} 11. Bf4 {[%clk
0:14:37]} 11... O-O {[%clk 0:14:42]} 12. d5 {[%clk 0:14:29.3]} 12... Qf5 {[%clk
0:14:37.8]} 13. g3 {[%clk 0:13:58.3]} 13... Bxe5 {[%clk 0:14:32.2]} 14. Bxe5
{[%clk 0:13:50.2]} 14... Qxe5 {[%clk 0:14:34.5]} 15. Qd2 {[%clk 0:13:36]} 15...
Rb8 {[%clk 0:14:23.2]} 16. O-O-O {[%clk 0:13:34.8]} 16... Rd8 {[%clk 0:14:08.7]}
17. Qd4 {[%clk 0:12:47.9]} 17... Qxd4 {[%clk 0:13:43.4]} 18. Rxd4 {[%clk
0:12:46]} 18... Bb7 {[%clk 0:13:21.8]} 19. Rhd1 {[%clk 0:12:28.3]} 19... c5
{[%clk 0:13:09]} 20. Rc4 {[%clk 0:12:03.1]} 20... Bxd5 {[%clk 0:12:58.8]} 21.
Nxd5 {[%clk 0:12:04.7]} 21... Nxd5 {[%clk 0:12:59.7]} 22. Rxe4 {[%clk
0:12:04.6]} 22... Nb4 {[%clk 0:12:47.6]} 23. Rxd8+ {[%clk 0:11:45.7]} 23... Rxd8
{[%clk 0:12:49.4]} 24. c3 {[%clk 0:11:40.3]} 24... Nxa2+ {[%clk 0:12:47.8]} 25.
Kc2 {[%clk 0:11:43.9]} 25... f5 {[%clk 0:12:29.2]} 26. Ra4 {[%clk 0:11:42]}
26... Nxc3 {[%clk 0:12:05.1]} 27. Kxc3 {[%clk 0:11:43.6]} 27... Re8 {[%clk
0:11:40.8]} 28. g4 {[%clk 0:11:16]} 28... fxg4 {[%clk 0:11:41.4]} 29. hxg4
{[%clk 0:11:19.6]} 29... Re2 {[%clk 0:11:44.1]} 30. f4 {[%clk 0:11:20.4]} 30...
Re3+ {[%clk 0:11:37.2]} 31. Kc4 {[%clk 0:11:21.9]} 31... Re4+ {[%clk 0:11:37.2]}
32. Kb5 {[%clk 0:11:19.5]} 32... Rxa4 {[%clk 0:11:34.3]} 33. Kxa4 {[%clk
0:11:23.1]} 33... Kf7 {[%clk 0:11:29]} 34. Kb5 {[%clk 0:11:26]} 34... Kf6 {[%clk
0:11:24.9]} 35. Kxc5 {[%clk 0:11:27.4]} 35... g5 {[%clk 0:11:25.1]} 36. f5
{[%clk 0:11:28.1]} 36... h5 {[%clk 0:11:22.8]} 37. gxh5 {[%clk 0:11:29.2]} 37...
Kxf5 {[%clk 0:11:25.4]} 38. b4 {[%clk 0:11:17.4]} 38... g4 {[%clk 0:11:28.4]}
39. Kc6 {[%clk 0:11:14]} 39... g3 {[%clk 0:11:30.9]} 40. Kb7 {[%clk 0:11:17.7]}
40... g2 {[%clk 0:11:34.4]} 41. Kxa7 {[%clk 0:11:22]} 41... g1=Q+ {[%clk
0:11:37.1]} 42. Ka6 {[%clk 0:11:23.1]} 42... Qg5 {[%clk 0:11:40.7]} 43. b5
{[%clk 0:11:25.7]} 43... Qxh5 {[%clk 0:11:44.9]} 44. b6 {[%clk 0:11:30]} 44...
Qg6 {[%clk 0:11:48.5]} 45. Ka7 {[%clk 0:11:32.6]} 45... Ke5 {[%clk 0:11:47.8]}
46. b7 {[%clk 0:11:36]} 46... Qf7 {[%clk 0:11:20.1]} 47. Ka8 {[%clk 0:11:38.1]}
47... Qa2+ {[%clk 0:11:22.1]} 48. Kb8 {[%clk 0:11:41.2]} 48... Kd6 {[%clk
0:11:22.2]} 49. Kc8 {[%clk 0:11:44.5]} 49... Qc2+ {[%clk 0:11:23.3]} 50. Kb8
{[%clk 0:11:47.9]} 50... Qc7+ {[%clk 0:11:24.9]} 51. Ka7 {[%clk 0:11:50.5]}
51... Qc5+ {[%clk 0:11:18.4]} 52. Ka8 {[%clk 0:11:53]} 52... Qa5+ {[%clk
0:11:16.3]} 53. Kb8 {[%clk 0:11:55.7]} 53... Qc7+ {[%clk 0:11:17.2]} 54. Ka7
{[%clk 0:11:57.6]} 54... Qc5+ {[%clk 0:11:14.3]} 55. Ka8 {[%clk 0:11:54.4]}
55... Qa5+ {[%clk 0:11:15.7]} 56. Kb8 {[%clk 0:11:54.4]} 56... Kc6 {[%clk
0:11:16.3]} 57. Kc8 {[%clk 0:11:57.3]} 57... Qc7# {[%clk 0:11:17.8]} 0-1

[Event "Live Chess"]
[Site "Chess.com"]
[Date "2023.09.16"]
[Round "-"]
[White "AnthonyGabriel1"]
[Black "Riquelme_Leonardo"]
[Result "1-0"]
[WhiteElo "2182"]
[BlackElo "1683"]
[TimeControl "900+5"]
[EndTime "7:03:59 PDT"]
[Termination "AnthonyGabriel1 venceu por desistência"]

1. e4 {[%clk 0:15:03.6]} 1... e5 {[%clk 0:15:01.7]} 2. f4 {[%clk 0:15:06.7]}
2... exf4 {[%clk 0:15:05]} 3. Nf3 {[%clk 0:15:11.3]} 3... g5 {[%clk 0:15:09.4]}
4. Bc4 {[%clk 0:15:14.2]} 4... Bg7 {[%clk 0:15:13.4]} 5. O-O {[%clk 0:15:02.8]}
5... d6 {[%clk 0:15:04.9]} 6. g3 {[%clk 0:14:48]} 6... fxg3 {[%clk 0:15:00]} 7.
d4 {[%clk 0:14:35.9]} 7... gxh2+ {[%clk 0:14:59.1]} 8. Kg2 {[%clk 0:14:22.7]}
8... g4 {[%clk 0:14:57.8]} 9. Ng5 {[%clk 0:14:21.4]} 9... Be6 {[%clk 0:14:57]}
10. Nxf7 {[%clk 0:14:22.1]} 10... Qh4 {[%clk 0:14:26.4]} 11. Bxe6 {[%clk
0:14:11.8]} 11... Qh3+ {[%clk 0:14:22.6]} 12. Kh1 {[%clk 0:14:16.1]} 12... Bxd4
{[%clk 0:13:56.9]} 13. Bxg4 {[%clk 0:14:19.1]} 13... Qg3 {[%clk 0:13:44.9]} 14.
Qxd4 {[%clk 0:13:41.3]} 14... Qxg4 {[%clk 0:13:43.3]} 15. Nxh8 {[%clk
0:13:36.1]} 15... Qe2 {[%clk 0:13:42.3]} 16. Qd3 {[%clk 0:13:29]} 1-0

[Event "Live Chess"]
[Site "Chess.com"]
[Date "2023.09.16"]
[Round "-"]
[White "z_anne_ari"]
[Black "MateusLuan08"]
[Result "0-1"]
[WhiteElo "1276"]
[BlackElo "1568"]
[TimeControl "900+5"]
[EndTime "7:04:43 PDT"]
[Termination "MateusLuan08 venceu por desistência"]

1. d4 {[%clk 0:15:04.2]} 1... Nf6 {[%clk 0:15:01]} 2. e3 {[%clk 0:15:07.9]} 2...
g6 {[%clk 0:15:04]} 3. Bd3 {[%clk 0:15:11.8]} 3... Bg7 {[%clk 0:15:08.1]} 4. Nd2
{[%clk 0:15:15.8]} 4... O-O {[%clk 0:15:09.8]} 5. f4 {[%clk 0:15:19.7]} 5... d5
{[%clk 0:15:08.4]} 6. Ngf3 {[%clk 0:15:23.2]} 6... Nc6 {[%clk 0:15:08.2]} 7. c3
{[%clk 0:15:27.4]} 7... a6 {[%clk 0:15:03]} 8. O-O {[%clk 0:15:30.7]} 8... Bg4
{[%clk 0:15:05.2]} 9. a4 {[%clk 0:15:25.4]} 9... Qd7 {[%clk 0:14:37.8]} 10. Qe1
{[%clk 0:15:14.5]} 10... Bf5 {[%clk 0:13:19.4]} 11. e4 {[%clk 0:15:07.9]} 11...
dxe4 {[%clk 0:13:23.1]} 12. Nxe4 {[%clk 0:15:11.9]} 12... Nxe4 {[%clk
0:13:22.9]} 13. Bxe4 {[%clk 0:15:15.9]} 13... Bxe4 {[%clk 0:13:25.8]} 14. Qxe4
{[%clk 0:15:19.6]} 14... Rfe8 {[%clk 0:13:16.6]} 15. Ng5 {[%clk 0:15:16.9]}
15... Rad8 {[%clk 0:12:28.2]} 16. f5 {[%clk 0:15:19.8]} 16... Qd5 {[%clk
0:11:59.4]} 17. Qh4 {[%clk 0:15:17.1]} 17... h5 {[%clk 0:11:55.7]} 18. fxg6
{[%clk 0:15:19.5]} 18... fxg6 {[%clk 0:11:58.9]} 19. Nf7 {[%clk 0:14:58.8]}
19... Bf6 {[%clk 0:10:48.1]} 20. Nh6+ {[%clk 0:14:54.9]} 20... Kh7 {[%clk
0:10:42.5]} 21. Rxf6 {[%clk 0:14:57.3]} 21... exf6 {[%clk 0:10:41.1]} 22. Qxf6
{[%clk 0:14:56.2]} 22... Rf8 {[%clk 0:09:56.7]} 23. Qg5 {[%clk 0:14:01.1]} 23...
Qxg5 {[%clk 0:09:53.1]} 24. Bxg5 {[%clk 0:14:04.3]} 24... Rd5 {[%clk 0:09:52.8]}
25. Bd2 {[%clk 0:13:57.9]} 25... g5 {[%clk 0:09:39.5]} 26. c4 {[%clk 0:13:41.7]}
26... Rxd4 {[%clk 0:09:23.8]} 27. Bxg5 {[%clk 0:13:42.9]} 27... Rxc4 {[%clk
0:09:21.2]} 28. b3 {[%clk 0:13:23.8]} 28... Rb4 {[%clk 0:09:04.1]} 29. Rb1
{[%clk 0:13:06.8]} 29... b5 {[%clk 0:08:51.7]} 30. axb5 {[%clk 0:13:08.2]} 30...
Rxb5 {[%clk 0:08:55.1]} 31. Bd2 {[%clk 0:13:02.3]} 31... Rd5 {[%clk 0:08:39.6]}
32. Be3 {[%clk 0:12:51.5]} 32... Re5 {[%clk 0:08:20.2]} 33. Bd2 {[%clk
0:12:48.2]} 33... Re6 {[%clk 0:08:15]} 34. b4 {[%clk 0:12:41.7]} 34... Rxh6
{[%clk 0:08:12.9]} 35. Bxh6 {[%clk 0:12:44.6]} 35... Kxh6 {[%clk 0:08:15.1]} 36.
b5 {[%clk 0:12:43.8]} 36... axb5 {[%clk 0:08:18.7]} 37. Rxb5 {[%clk 0:12:47.3]}
37... Rb8 {[%clk 0:08:13.4]} 38. Rf5 {[%clk 0:12:46.6]} 38... Rb6 {[%clk
0:08:11.3]} 39. h3 {[%clk 0:12:43.5]} 39... Nd4 {[%clk 0:08:10.7]} 40. Rf2
{[%clk 0:12:32.5]} 40... c5 {[%clk 0:08:12.4]} 41. g4 {[%clk 0:12:32]} 41...
hxg4 {[%clk 0:08:14.4]} 42. hxg4 {[%clk 0:12:33.8]} 42... Kg5 {[%clk 0:08:18.2]}
43. Rg2 {[%clk 0:12:23.9]} 43... c4 {[%clk 0:08:18.9]} 44. Kf2 {[%clk
0:12:26.3]} 44... Rb2+ {[%clk 0:08:19.7]} 45. Kg3 {[%clk 0:12:27.6]} 45... Rxg2+
{[%clk 0:08:23.9]} 46. Kxg2 {[%clk 0:12:31.9]} 46... c3 {[%clk 0:08:26.2]} 47.
Kf2 {[%clk 0:12:36.1]} 47... c2 {[%clk 0:08:28]} 48. Ke3 {[%clk 0:12:40.4]}
48... c1=Q+ {[%clk 0:08:31.6]} 0-1

[Event "Live Chess"]
[Site "Chess.com"]
[Date "2023.09.16"]
[Round "-"]
[White "kslusk"]
[Black "NavarroChess09"]
[Result "0-1"]
[WhiteElo "848"]
[BlackElo "1339"]
[TimeControl "900+5"]
[EndTime "7:04:51 PDT"]
[Termination "NavarroChess09 venceu por desistência"]

1. e4 {[%clk 0:15:03.3]} 1... d5 {[%clk 0:15:04.9]} 2. exd5 {[%clk 0:15:06.7]}
2... Qxd5 {[%clk 0:15:09.7]} 3. Nc3 {[%clk 0:15:11.1]} 3... Qe6+ {[%clk
0:15:14.1]} 4. Qe2 {[%clk 0:15:13.1]} 4... Nf6 {[%clk 0:15:14.7]} 5. Qxe6 {[%clk
0:15:16.4]} 5... Bxe6 {[%clk 0:15:18.9]} 6. Nf3 {[%clk 0:15:19.6]} 6... Nc6
{[%clk 0:15:22.8]} 7. Bb5 {[%clk 0:15:23.1]} 7... O-O-O {[%clk 0:15:26.8]} 8.
Bxc6 {[%clk 0:15:25.3]} 8... bxc6 {[%clk 0:15:30.5]} 9. O-O {[%clk 0:15:28.8]}
9... g6 {[%clk 0:15:33.1]} 10. d3 {[%clk 0:15:27.6]} 10... Bg7 {[%clk 0:15:37]}
11. Ne5 {[%clk 0:15:18.2]} 11... Kb7 {[%clk 0:15:32.5]} 12. Na4 {[%clk
0:15:10.5]} 12... Rd5 {[%clk 0:15:27.3]} 13. Re1 {[%clk 0:14:57.3]} 13... c5
{[%clk 0:15:16.4]} 14. c4 {[%clk 0:14:44]} 14... Rd6 {[%clk 0:14:10.9]} 15.
Nxc5+ {[%clk 0:14:44.1]} 15... Kb6 {[%clk 0:14:10.4]} 16. Nxe6 {[%clk
0:14:37.6]} 16... Rxe6 {[%clk 0:14:06.1]} 17. Be3+ {[%clk 0:14:36]} 17... Kb7
{[%clk 0:14:07.4]} 18. Bg5 {[%clk 0:14:22.8]} 18... Nh5 {[%clk 0:14:00.6]} 19.
Nf3 {[%clk 0:14:12.4]} 19... Bxb2 {[%clk 0:13:55]} 20. Rab1 {[%clk 0:14:13.2]}
20... Rb6 {[%clk 0:13:47.5]} 21. Be3 {[%clk 0:14:00.3]} 21... Rb4 {[%clk
0:13:34.8]} 22. a3 {[%clk 0:13:51.6]} 22... Bxa3 {[%clk 0:13:32.9]} 23. Rxb4+
{[%clk 0:13:54.8]} 23... Bxb4 {[%clk 0:13:35.4]} 24. Rb1 {[%clk 0:13:59.5]}
24... a5 {[%clk 0:13:38.2]} 25. Bd2 {[%clk 0:14:02.4]} 25... c5 {[%clk
0:13:40.5]} 26. Bxb4 {[%clk 0:13:35]} 26... axb4 {[%clk 0:13:42]} 27. Ng5 {[%clk
0:13:33.5]} 27... f6 {[%clk 0:13:44.3]} 28. Ne4 {[%clk 0:13:36.3]} 28... Kc6
{[%clk 0:13:46.4]} 29. Kf1 {[%clk 0:13:26.9]} 29... Rd8 {[%clk 0:13:48]} 30. Ke2
{[%clk 0:13:29.1]} 30... Nf4+ {[%clk 0:13:49.1]} 31. Ke3 {[%clk 0:13:21.6]}
31... Nxd3 {[%clk 0:13:49.4]} 32. Rd1 {[%clk 0:13:22.9]} 32... f5 {[%clk
0:13:39.3]} 33. Ng5 {[%clk 0:13:09.2]} 33... h6 {[%clk 0:13:13.9]} 34. Nf3
{[%clk 0:12:51]} 34... f4+ {[%clk 0:13:14.1]} 35. Ke4 {[%clk 0:12:43]} 35...
Nxf2+ {[%clk 0:13:16.5]} 0-1

[Event "Live Chess"]
[Site "Chess.com"]
[Date "2023.09.16"]
[Round "-"]
[White "Riquelme_Leonardo"]
[Black "zezemito921"]
[Result "1-0"]
[WhiteElo "1683"]
[BlackElo "917"]
[TimeControl "900+5"]
[EndTime "7:05:08 PDT"]
[Termination "Riquelme_Leonardo venceu por desistência"]

1. e4 {[%clk 0:15:02.3]} 1... e5 {[%clk 0:15:02.9]} 2. Nf3 {[%clk 0:15:06]} 2...
Nc6 {[%clk 0:15:05.2]} 3. Bc4 {[%clk 0:15:10.4]} 3... Nf6 {[%clk 0:15:06.2]} 4.
O-O {[%clk 0:15:13.8]} 4... Nxe4 {[%clk 0:15:09]} 5. Re1 {[%clk 0:15:18.1]} 5...
Nf6 {[%clk 0:15:12.7]} 6. Nxe5 {[%clk 0:15:21.8]} 6... Bd6 {[%clk 0:15:12.2]} 7.
Nxc6+ {[%clk 0:15:25.8]} 7... Qe7 {[%clk 0:15:06.6]} 8. Nxe7 {[%clk 0:15:29.3]}
8... Kd8 {[%clk 0:15:09]} 9. Nxc8 {[%clk 0:15:31.9]} 9... Kxc8 {[%clk 0:15:10]}
10. Bxf7 {[%clk 0:15:32.1]} 10... Rb8 {[%clk 0:15:11.2]} 11. Qe2 {[%clk
0:15:35.6]} 1-0

[Event "Live Chess"]
[Site "Chess.com"]
[Date "2023.09.16"]
[Round "-"]
[White "Du_Felix"]
[Black "andre2873"]
[Result "1-0"]
[WhiteElo "1932"]
[BlackElo "634"]
[TimeControl "900+5"]
[EndTime "7:05:20 PDT"]
[Termination "Du_Felix venceu por tempo"]

1. e4 {[%clk 0:14:58.8]} 1... e5 {[%clk 0:15:03.6]} 2. Nf3 {[%clk 0:14:43.3]}
2... Nc6 {[%clk 0:15:05.9]} 3. Bb5 {[%clk 0:14:45.4]} 3... d6 {[%clk 0:14:51.2]}
4. O-O {[%clk 0:14:44]} 4... Bd7 {[%clk 0:14:49.1]} 5. c3 {[%clk 0:14:44]} 5...
a6 {[%clk 0:14:52.6]} 6. Ba4 {[%clk 0:14:47.6]} 6... b5 {[%clk 0:14:32.9]} 7.
Bb3 {[%clk 0:14:49]} 7... g6 {[%clk 0:14:16.5]} 8. d4 {[%clk 0:14:29.6]} 8...
Bg7 {[%clk 0:13:59.2]} 9. Bg5 {[%clk 0:14:18.8]} 9... Nge7 {[%clk 0:13:53]} 10.
d5 {[%clk 0:13:20.5]} 10... Na5 {[%clk 0:13:11.9]} 11. Bc2 {[%clk 0:13:18.8]}
11... h6 {[%clk 0:12:59.8]} 12. Be3 {[%clk 0:13:15.6]} 12... f6 {[%clk
0:12:45.7]} 13. Nbd2 {[%clk 0:13:09.1]} 13... Nb7 {[%clk 0:12:39.1]} 14. Nh4
{[%clk 0:11:50]} 14... O-O {[%clk 0:11:43.1]} 15. f4 {[%clk 0:11:02.7]} 15... f5
{[%clk 0:10:57.3]} 16. fxe5 {[%clk 0:10:55.7]} 16... dxe5 {[%clk 0:11:00.1]} 17.
Ndf3 {[%clk 0:08:07.9]} 17... Nd6 {[%clk 0:10:41.7]} 18. Qd2 {[%clk 0:04:48.9]}
18... f4 {[%clk 0:10:15.8]} 19. Bf2 {[%clk 0:04:39.6]} 19... g5 {[%clk
0:10:11.6]} 20. Nf5 {[%clk 0:04:40]} 20... Nexf5 {[%clk 0:10:03.3]} 21. exf5
{[%clk 0:04:44.2]} 21... Bxf5 {[%clk 0:10:01]} 22. Rfe1 {[%clk 0:04:34.6]} 22...
Re8 {[%clk 0:09:22.3]} 23. Bc5 {[%clk 0:04:26.5]} 23... Qf6 {[%clk 0:08:36.8]}
24. a4 {[%clk 0:04:18.9]} 24... Rab8 {[%clk 0:08:18.2]} 25. Bxf5 {[%clk
0:04:10.4]} 25... Qxf5 {[%clk 0:08:04.8]} 26. Bxd6 {[%clk 0:04:11.5]} 26... cxd6
{[%clk 0:08:07.9]} 27. axb5 {[%clk 0:04:15.4]} 27... axb5 {[%clk 0:08:11.1]} 28.
Ra6 {[%clk 0:04:15.7]} 28... Qf6 {[%clk 0:07:44.1]} 29. Rea1 {[%clk 0:03:11.3]}
29... Bf8 {[%clk 0:07:03.9]} 30. Ra7 {[%clk 0:02:07.4]} 30... g4 {[%clk
0:06:46]} 31. Qc2 {[%clk 0:02:10.2]} 31... Re7 {[%clk 0:06:40.5]} 32. Ne1 {[%clk
0:01:57.6]} 32... Rbb7 {[%clk 0:05:43.7]} 33. Ra8 {[%clk 0:01:56]} 33... h5
{[%clk 0:04:35.8]} 34. Nd3 {[%clk 0:01:51.3]} 34... h4 {[%clk 0:03:57.2]} 35.
Nb4 {[%clk 0:01:53.1]} 35... h3 {[%clk 0:03:21.1]} 36. Nc6 {[%clk 0:01:53.5]}
36... Rh7 {[%clk 0:03:10.5]} 37. Nd8 {[%clk 0:01:29.6]} 37... Rbg7 {[%clk
0:01:35.8]} 38. Ne6 {[%clk 0:01:31.7]} 38... Rf7 {[%clk 0:01:35]} 39. Rb8 {[%clk
0:01:14]} 39... g3 {[%clk 0:00:36.9]} 40. Raa8 {[%clk 0:01:15.1]} 1-0

[Event "Live Chess"]
[Site "Chess.com"]
[Date "2023.09.16"]
[Round "-"]
[White "Edson_Zarnelli"]
[Black "P3treis"]
[Result "1-0"]
[WhiteElo "765"]
[BlackElo "904"]
[TimeControl "900+5"]
[EndTime "7:05:42 PDT"]
[Termination "Edson_Zarnelli venceu por desistência"]

1. e4 {[%clk 0:15:04.1]} 1... c5 {[%clk 0:15:01.8]} 2. c3 {[%clk 0:15:06.2]}
2... d5 {[%clk 0:14:49]} 3. d4 {[%clk 0:14:47.2]} 3... dxe4 {[%clk 0:14:43.2]}
4. dxc5 {[%clk 0:14:50]} 4... Qd2+ {[%clk 0:14:46.5]} 5. Qxd2 {[%clk 0:14:51.1]}
5... Nc6 {[%clk 0:14:46.2]} 6. Qd5 {[%clk 0:14:48.7]} 6... f5 {[%clk 0:14:38.7]}
7. f3 {[%clk 0:14:46.1]} 7... e6 {[%clk 0:14:35.8]} 8. Qc4 {[%clk 0:14:36.2]}
8... Ne5 {[%clk 0:14:16.1]} 9. Qb5+ {[%clk 0:14:26]} 9... Bd7 {[%clk 0:14:15.8]}
10. Qxb7 {[%clk 0:14:27.6]} 10... exf3 {[%clk 0:14:09.1]} 11. gxf3 {[%clk
0:14:23.2]} 1-0

[Event "Live Chess"]
[Site "Chess.com"]
[Date "2023.09.16"]
[Round "-"]
[White "daniel-drummond"]
[Black "migu345"]
[Result "1-0"]
[WhiteElo "1551"]
[BlackElo "991"]
[TimeControl "900+5"]
[EndTime "7:06:04 PDT"]
[Termination "daniel-drummond venceu por desistência"]

1. e4 {[%clk 0:15:03.1]} 1... e6 {[%clk 0:15:03.9]} 2. d4 {[%clk 0:15:05.5]}
2... d5 {[%clk 0:15:08.8]} 3. e5 {[%clk 0:15:09.5]} 3... c5 {[%clk 0:15:12.3]}
4. c3 {[%clk 0:15:13.7]} 4... Nc6 {[%clk 0:15:16.1]} 5. Nf3 {[%clk 0:15:18.3]}
5... Qb6 {[%clk 0:15:20.5]} 6. a3 {[%clk 0:15:21.8]} 6... Nge7 {[%clk
0:15:16.3]} 7. b4 {[%clk 0:15:25.9]} 7... cxb4 {[%clk 0:15:17.5]} 8. cxb4 {[%clk
0:15:28.6]} 8... Nf5 {[%clk 0:15:10.2]} 9. Bb2 {[%clk 0:15:32.4]} 9... Be7
{[%clk 0:14:52.9]} 10. Be2 {[%clk 0:15:35.7]} 10... O-O {[%clk 0:14:56.2]} 11.
O-O {[%clk 0:15:38.7]} 11... Bd7 {[%clk 0:14:54.3]} 12. Qd3 {[%clk 0:15:40.6]}
12... Na5 {[%clk 0:14:43.9]} 13. Nbd2 {[%clk 0:15:28.4]} 13... Rac8 {[%clk
0:14:26]} 14. Rfb1 {[%clk 0:15:01.3]} 14... Nc4 {[%clk 0:14:26]} 15. Nxc4 {[%clk
0:15:02.1]} 15... Rxc4 {[%clk 0:14:30.9]} 16. g4 {[%clk 0:14:59.4]} 16... Nh4
{[%clk 0:14:28.4]} 17. Nxh4 {[%clk 0:15:01]} 17... Bxh4 {[%clk 0:14:33.3]} 18.
Bd1 {[%clk 0:14:59.9]} 18... Bb5 {[%clk 0:14:15.4]} 19. Bc2 {[%clk 0:14:59.5]}
19... Rfc8 {[%clk 0:14:10.7]} 20. Qxh7+ {[%clk 0:14:54.4]} 20... Kf8 {[%clk
0:14:13.2]} 21. Qh8+ {[%clk 0:14:58.1]} 21... Ke7 {[%clk 0:14:15.3]} 22. Qxh4+
{[%clk 0:15:01]} 22... f6 {[%clk 0:14:16.8]} 23. exf6+ {[%clk 0:15:03.9]} 23...
gxf6 {[%clk 0:14:21.7]} 24. Qh7+ {[%clk 0:15:06.1]} 24... Kd6 {[%clk 0:14:25.9]}
25. Bb3 {[%clk 0:15:00]} 25... R4c7 {[%clk 0:14:14.1]} 26. Qh3 {[%clk
0:14:48.3]} 26... Be2 {[%clk 0:14:05]} 27. a4 {[%clk 0:14:44.8]} 27... Rg8
{[%clk 0:14:07.5]} 28. Qg3+ {[%clk 0:14:29.2]} 28... Kd7 {[%clk 0:14:07.8]} 29.
f3 {[%clk 0:14:32.2]} 29... Bc4 {[%clk 0:14:04.1]} 30. Bxc4 {[%clk 0:14:30.8]}
30... Rxc4 {[%clk 0:14:09]} 31. b5 {[%clk 0:14:32.4]} 31... Rxd4 {[%clk
0:14:05.4]} 32. Bxd4 {[%clk 0:14:35.1]} 32... Qxd4+ {[%clk 0:14:10.3]} 33. Kg2
{[%clk 0:14:37]} 33... Qd2+ {[%clk 0:14:13.6]} 34. Qf2 {[%clk 0:14:40.5]} 1-0

[Event "Live Chess"]
[Site "Chess.com"]
[Date "2023.09.16"]
[Round "-"]
[White "Ggavioli"]
[Black "gu1c0rrea"]
[Result "1-0"]
[WhiteElo "1553"]
[BlackElo "834"]
[TimeControl "900+5"]
[EndTime "7:06:05 PDT"]
[Termination "Ggavioli venceu por desistência"]

1. e4 {[%clk 0:15:04.3]} 1... e5 {[%clk 0:15:03.7]} 2. Nf3 {[%clk 0:15:08.3]}
2... Nc6 {[%clk 0:15:07.5]} 3. Bb5 {[%clk 0:15:11.8]} 3... a6 {[%clk 0:15:10.9]}
4. Bxc6 {[%clk 0:15:15.7]} 4... dxc6 {[%clk 0:15:15.2]} 5. Nc3 {[%clk
0:15:20.1]} 5... Bg4 {[%clk 0:15:03.3]} 6. h3 {[%clk 0:15:12.8]} 6... Bh5 {[%clk
0:14:44.3]} 7. d3 {[%clk 0:14:48.3]} 7... Bb4 {[%clk 0:14:33.9]} 8. Bd2 {[%clk
0:14:48.4]} 8... Nf6 {[%clk 0:14:24.1]} 9. a3 {[%clk 0:14:49.9]} 9... Ba5 {[%clk
0:14:24.8]} 10. Qe2 {[%clk 0:14:48.6]} 10... b5 {[%clk 0:13:50.9]} 11. g4 {[%clk
0:14:42.4]} 11... Bg6 {[%clk 0:13:43.9]} 12. Nxe5 {[%clk 0:14:46]} 12... h5
{[%clk 0:13:28.3]} 13. Nxc6 {[%clk 0:14:44.3]} 13... Qd6 {[%clk 0:13:03.1]} 14.
Nxa5 {[%clk 0:14:45.2]} 14... Qb6 {[%clk 0:12:54.8]} 15. Nd5 {[%clk 0:14:39.7]}
15... Nxd5 {[%clk 0:12:39.2]} 16. exd5+ {[%clk 0:14:42.2]} 16... Kd7 {[%clk
0:12:41.9]} 17. O-O-O {[%clk 0:14:35.9]} 17... Rae8 {[%clk 0:12:29.6]} 18. Qf3
{[%clk 0:14:29.9]} 18... hxg4 {[%clk 0:11:57.9]} 19. Qxg4+ {[%clk 0:14:28.9]}
19... Kd8 {[%clk 0:11:51.4]} 20. Nc6+ {[%clk 0:14:26.9]} 20... Qxc6 {[%clk
0:11:48.2]} 21. dxc6 {[%clk 0:14:31.8]} 21... Bh5 {[%clk 0:11:51.4]} 1-0

[Event "Live Chess"]
[Site "Chess.com"]
[Date "2023.09.16"]
[Round "-"]
[White "InfinityDelas"]
[Black "maylso"]
[Result "1-0"]
[WhiteElo "763"]
[BlackElo "1432"]
[TimeControl "900+5"]
[EndTime "7:06:18 PDT"]
[Termination "InfinityDelas venceu por desistência"]

1. e4 {[%clk 0:14:58.3]} 1... e5 {[%clk 0:15:03.9]} 2. f4 {[%clk 0:15:01.6]}
2... exf4 {[%clk 0:15:03.8]} 3. d3 {[%clk 0:15:05.3]} 3... Qh4+ {[%clk
0:15:05.7]} 4. g3 {[%clk 0:14:58.9]} 4... fxg3 {[%clk 0:15:09]} 5. Nf3 {[%clk
0:14:56]} 5... g2+ {[%clk 0:14:54.3]} 6. Nxh4 {[%clk 0:14:55.3]} 6... gxh1=Q
{[%clk 0:14:57.2]} 7. Qe2 {[%clk 0:14:49.3]} 7... Qg1 {[%clk 0:14:34.5]} 8. Bf4
{[%clk 0:14:45]} 8... Qb6 {[%clk 0:14:28.5]} 9. b3 {[%clk 0:14:37.4]} 9... Bc5
{[%clk 0:14:29.6]} 10. Nd2 {[%clk 0:14:27.9]} 10... Nf6 {[%clk 0:14:13]} 11. Nc4
{[%clk 0:14:23.2]} 11... Qb4+ {[%clk 0:13:49.7]} 12. Nd2 {[%clk 0:14:18.4]}
12... d6 {[%clk 0:13:35.2]} 13. Nf5 {[%clk 0:14:16.1]} 13... Rg8 {[%clk
0:13:21]} 14. e5 {[%clk 0:14:18.4]} 14... dxe5 {[%clk 0:12:49.9]} 15. Bxe5
{[%clk 0:14:21.4]} 15... Be6 {[%clk 0:12:01.5]} 16. Bxc7 {[%clk 0:14:16.3]}
16... Nc6 {[%clk 0:11:52.9]} 17. Bh3 {[%clk 0:14:15.5]} 17... Nd5 {[%clk
0:10:28.3]} 18. a3 {[%clk 0:14:01.4]} 18... Qc3 {[%clk 0:10:10.1]} 19. Rc1
{[%clk 0:12:57.5]} 19... Qf6 {[%clk 0:09:05.2]} 20. Ne4 {[%clk 0:12:33.2]} 20...
Qg6 {[%clk 0:07:54.9]} 21. Nxc5 {[%clk 0:12:16.3]} 21... Nc3 {[%clk 0:07:12.8]}
22. Qe3 {[%clk 0:11:16.9]} 22... Rc8 {[%clk 0:06:56.4]} 23. Nd6+ {[%clk
0:11:16.9]} 23... Kf8 {[%clk 0:06:22.4]} 24. Nxc8 {[%clk 0:11:14.8]} 24... Bxh3
{[%clk 0:06:00.3]} 25. Qxh3 {[%clk 0:10:58.7]} 25... Qg1+ {[%clk 0:05:55.9]} 26.
Kd2 {[%clk 0:11:01.6]} 26... Qxc5 {[%clk 0:05:50.5]} 27. Bd6+ {[%clk 0:10:40.8]}
27... Qxd6 {[%clk 0:05:48.3]} 28. Nxd6 {[%clk 0:10:44.3]} 1-0